[Event "FIDE World Rapid-ch Open 2018"]
[White "Predke, Alexandr"]
[Black "Motylev, Alexander"]
[Site "St. Petersburg"]
[Round "3.28"]
[Annotator "ChessBase"]
[Result "1/2-1/2"]
[Date "2018.12.26"]
[WhiteElo "2622"]
[BlackElo "2644"]
[PlyCount "83"]
[TimeControl "900+10"]

1. e4 {[%emt 0:0:0]} e5 {[%emt 0:0:0]} 2. Nc3 {[%emt 0:0:0]} Nf6 {[%emt 0:0:8]
} 3. g3 {[%emt 0:0:0]} d5 {[%emt 0:0:15]} 4. exd5 {[%emt 0:0:0]} Nxd5 {[%emt 0:0:1]} 5. Bg2 {[%emt 0:0:2]} Nxc3 {[%emt 0:0:6]} 6. bxc3 {[%emt 0:0:3]} Bc5 {[%emt 0:0:17]} 7. Nf3 {[%emt 0:0:5]} Nc6 {[%emt 0:0:2]
} 8. 0-0 {[%emt 0:0:11]} 0-0 {[%emt 0:0:2]} 9. Qe2 {[%emt 0:0:0]} Re8 {[%emt 0:0:23]} 10. d3 {[%emt 0:0:8]} Bg4 {[%emt 0:0:27]} 11. h3 {[%emt 0:0:47]} Bh5 {[%emt 0:0:3]} 12. g4 {[%emt 0:0:2]} Bg6 {[%emt 0:0:0]} 13. Nd2 {[%emt 0:0:1]} Bb6 {[%emt 0:0:42]} 14. Ne4 {[%emt 0:0:32]} Ne7 {[%emt 0:0:19]} 15. a4 {[%emt 0:1:19]} c6 {[%emt 0:0:27]} 16. c4 {[%emt 0:1:40]
} f5 {[%emt 0:0:54]} 17. Ng5 {[%emt 0:0:28]} h6 {[%emt 0:0:55]
} 18. a5 {[%emt 0:0:18]} Bd4 {[%emt 0:1:2]} 19. Ne6 {[%emt 0:0:35]} Qd7 {[%emt 0:0:6]
} 20. Nxd4 {[%emt 0:1:8]} exd4 {[%emt 0:0:13]} 21. Qf3 {[%emt 0:0:11]
} Rf8 {[%emt 0:2:18]} 22. Qg3 {[%emt 0:0:10]} fxg4 {[%emt 0:0:0]} 23. hxg4 {[%emt 0:0:2]} h5 {[%emt 0:0:7]} 24. Ba3 {[%emt 0:1:16]} hxg4 {[%emt 0:1:4]} 25. Qd6 {[%emt 0:0:24]} Qxd6 {[%emt 0:1:50]} 26. Bxd6 {[%emt 0:0:3]
} Rf7 {[%emt 0:0:1]} 27. a6 {[%emt 0:0:1]} b6 {[%emt 0:0:5]
} 28. c5 {[%emt 0:1:16]} bxc5 {[%emt 0:2:20]} 29. Bxc5 {[%emt 0:0:6]} Nd5 {[%emt 0:0:32]
} 30. Bxd5 {[%emt 0:1:23]} cxd5 {[%emt 0:0:2]} 31. Bxd4 {[%emt 0:0:2]
} Rc8 {[%emt 0:0:58]} 32. Ra2 {[%emt 0:0:44]} Rc6 {[%emt 0:0:0]} 33. Rb1 {[%emt 0:0:21]} Bf5 {[%emt 0:0:2]} 34. Rb5 {[%emt 0:1:18]} Be6 {[%emt 0:0:3]} 35. Kg2 {[%emt 0:0:47]} Kh7 {[%emt 0:0:6]} 36. Rb7 {[%emt 0:2:48]
} Rcc7 {[%emt 0:0:1]} 37. Rb8 {[%emt 0:0:1]} Rc6 {[%emt 0:0:0]} 38. Rd8 {[%emt 0:0:56]} Rfc7 {[%emt 0:0:18]} 39. c3 {[%emt 0:0:3]} Rc8 {[%emt 0:0:16]} 40. Rxc8 {[%emt 0:0:31]} Bxc8 {[%emt 0:0:2]} 41. Bxa7 {[%emt 0:1:9]
} Rxa6 {[%emt 0:0:1]} 42. Rxa6 {[%emt 0:0:3]} 1/2-1/2

[Event "FIDE World Rapid-ch Open 2018"]
[White "Moiseenko, Vadim"]
[Black "Salem, A.R. Saleh"]
[Site "St. Petersburg"]
[Round "3.29"]
[Annotator "ChessBase"]
[Result "1/2-1/2"]
[Date "2018.12.26"]
[WhiteElo "2501"]
[BlackElo "2660"]
[PlyCount "144"]
[TimeControl "900+10"]

1. e4 {[%emt 0:0:0]} c5 {[%emt 0:0:0]} 2. Nf3 {[%emt 0:0:0]} d6 {[%emt 0:0:0]} 3. d4 {[%emt 0:0:0]} cxd4 {[%emt 0:0:0]} 4. Nxd4 {[%emt 0:0:0]} Nf6 {[%emt 0:0:0]} 5. Nc3 {[%emt 0:0:0]} a6 {[%emt 0:0:0]} 6. Be3 {[%emt 0:0:0]
} Ng4 {[%emt 0:0:0]} 7. Bc1 {[%emt 0:0:7]} Nf6 {[%emt 0:0:0]} 8. Be3 {[%emt 0:0:2]} Ng4 {[%emt 0:0:0]} 9. Bg5 {[%emt 0:0:21]} h6 {[%emt 0:0:0]
} 10. Bh4 {[%emt 0:0:4]} g5 {[%emt 0:0:1]} 11. Bg3 {[%emt 0:0:0]} Bg7 {[%emt 0:0:1]} 12. h3 {[%emt 0:0:4]} Ne5 {[%emt 0:0:2]} 13. f3 {[%emt 0:0:2]} Nbc6 {[%emt 0:0:2]} 14. Bf2 {[%emt 0:0:4]} Be6 {[%emt 0:0:23]
} 15. Qd2 {[%emt 0:0:17]} Nxd4 {[%emt 0:0:31]} 16. Bxd4 {[%emt 0:0:6]
} Rc8 {[%emt 0:0:3]} 17. h4 {[%emt 0:0:34]} Qa5 {[%emt 0:0:0]} 18. a3 {[%emt 0:0:46]} b5 {[%emt 0:3:28]} 19. Rd1 {[%emt 0:0:25]} Rg8 {[%emt 0:2:15]
} 20. hxg5 {[%emt 0:1:4]} hxg5 {[%emt 0:0:1]} 21. Be2 {[%emt 0:2:11]
} Bf6 {[%emt 0:1:26]} 22. g3 {[%emt 0:2:28]} Rc4 {[%emt 0:0:0]} 23. Bxe5 {[%emt 0:2:38]} Bxe5 {[%emt 0:0:1]} 24. Bxc4 {[%emt 0:0:2]} Bxg3+ {[%emt 0:0:10]} 25. Kf1 {[%emt 0:0:1]} Bxc4+ {[%emt 0:0:6]} 26. Kg2 {[%emt 0:0:1]} Be5 {[%emt 0:1:19]} 27. Rh5 {[%emt 0:0:11]} Qd8 {[%emt 0:0:0]} 28. Rxg5 {[%emt 0:2:27]} Kd7 {[%emt 0:0:1]} 29. Qe3 {[%emt 0:1:2]} Rxg5+ {[%emt 0:0:29]} 30. Qxg5 {[%emt 0:0:0]} Qh8 {[%emt 0:0:1]} 31. Rh1 {[%emt 0:1:24]
} Bf1+ {[%emt 0:0:6]} 32. Kg1 {[%emt 0:0:25]} Bd4+ {[%emt 0:0:0]} 33. Kxf1 {[%emt 0:0:1]} Qxh1+ {[%emt 0:0:1]} 34. Ke2 {[%emt 0:0:0]} e6 {[%emt 0:1:30]} 35. Nd1 {[%emt 0:0:41]} Be5 {[%emt 0:0:46]} 36. Qe3 {[%emt 0:0:40]} Ke8 {[%emt 0:0:30]} 37. c3 {[%emt 0:0:27]} Qh2+ {[%emt 0:0:0]} 38. Qf2 {[%emt 0:0:25]} Qh6 {[%emt 0:0:1]} 39. Ne3 {[%emt 0:0:14]} Bg7 {[%emt 0:1:36]} 40. Qg1 {[%emt 0:0:54]} Kf8 {[%emt 0:0:31]} 41. Ng4 {[%emt 0:0:24]
} Qh3 {[%emt 0:0:2]} 42. Qh2 {[%emt 0:0:40]} Qxh2+ {[%emt 0:0:0]} 43. Nxh2 {[%emt 0:0:1]} Ke7 {[%emt 0:0:12]} 44. Ng4 {[%emt 0:0:6]} Kd7 {[%emt 0:0:6]} 45. Kd3 {[%emt 0:0:3]} Kc6 {[%emt 0:0:2]} 46. Ne3 {[%emt 0:0:36]
} Bh6 {[%emt 0:0:6]} 47. Nc2 {[%emt 0:0:15]} Kc5 {[%emt 0:0:0]} 48. Nd4 {[%emt 0:0:14]} Bg5 {[%emt 0:0:14]} 49. Ne2 {[%emt 0:0:17]} Bh6 {[%emt 0:0:10]} 50. Nd4 {[%emt 0:0:2]} Bg7 {[%emt 0:0:1]} 51. f4 {[%emt 0:0:0]} d5 {[%emt 0:1:11]} 52. b4+ {[%emt 0:0:16]} Kd6 {[%emt 0:0:2]} 53. e5+ {[%emt 0:0:15]} Kd7 {[%emt 0:0:3]} 54. Nb3 {[%emt 0:0:7]} Bf8 {[%emt 0:0:1]
} 55. Kd4 {[%emt 0:0:10]} Kc6 {[%emt 0:0:2]} 56. Ke3 {[%emt 0:0:0]} Kd7 {[%emt 0:0:16]} 57. Kd4 {[%emt 0:0:11]} Kc6 {[%emt 0:0:3]} 58. Ke3 {[%emt 0:0:1]} Be7 {[%emt 0:0:22]} 59. Nd4+ {[%emt 0:0:25]} Kd7 {[%emt 0:0:1]
} 60. Nb3 {[%emt 0:0:2]} Kc6 {[%emt 0:0:1]} 61. Nd4+ Kc7 62. Nb3 {[%emt 0:0:13]} Kd7 {[%emt 0:0:3]} 63. Kd4 {[%emt 0:0:6]} Kc6 {[%emt 0:0:1]
} 64. Ke3 {[%emt 0:0:1]} Bd8 {[%emt 0:0:8]} 65. Nd4+ {[%emt 0:0:17]
} Kd7 {[%emt 0:0:1]} 66. Kf3 {[%emt 0:0:5]} Bb6 {[%emt 0:0:0]} 67. f5 {[%emt 0:0:28]} Bxd4 {[%emt 0:0:53]} 68. cxd4 {[%emt 0:0:5]} exf5 {[%emt 0:0:6]} 69. Kf4 {[%emt 0:0:2]} Ke6 {[%emt 0:0:1]} 70. Kg5 {[%emt 0:0:1]
} f4 {[%emt 0:0:3]} 71. Kxf4 {[%emt 0:0:2]} f6 {[%emt 0:0:0]} 72. exf6 {[%emt 0:0:7]} Kxf6 {[%emt 0:0:1] Ke4 Ke5+} 1/2-1/2

[Event "FIDE World Rapid-ch Open 2018"]
[White "Zubov, Alexander"]
[Black "Drygalov, Sergey"]
[Site "St. Petersburg"]
[Round "3.30"]
[Annotator "ChessBase"]
[Result "1-0"]
[Date "2018.12.26"]
[WhiteElo "2597"]
[BlackElo "2446"]
[PlyCount "141"]
[TimeControl "900+10"]

1. d4 {[%emt 0:0:0]} d5 {[%emt 0:0:0]} 2. c4 {[%emt 0:0:0]} c6 {[%emt 0:0:0]} 3. Nf3 {[%emt 0:0:8]} Nf6 {[%emt 0:0:0]} 4. Qb3 {[%emt 0:0:12]} dxc4 {[%emt 0:0:11]} 5. Qxc4 {[%emt 0:0:2]} Bg4 {[%emt 0:0:1]} 6. Nbd2 {[%emt 0:0:50]
} Nbd7 {[%emt 0:0:32]} 7. g3 {[%emt 0:0:27]} e6 {[%emt 0:0:12]
} 8. Bg2 {[%emt 0:0:7]} Be7 {[%emt 0:0:1]} 9. Qb3 {[%emt 0:0:44]} Qb6 {[%emt 0:0:39]
} 10. Nc4 {[%emt 0:0:2]} Qxb3 {[%emt 0:2:50]} 11. axb3 {[%emt 0:0:1]
} Bb4+ {[%emt 0:0:5]} 12. Bd2 {[%emt 0:0:39]} Bxf3 {[%emt 0:0:0]} 13. Bxf3 {[%emt 0:0:5]} Bxd2+ {[%emt 0:0:12]} 14. Kxd2 {[%emt 0:0:0]} Ke7 {[%emt 0:0:6]} 15. e4 {[%emt 0:0:47]} Rhd8 {[%emt 0:2:56]} 16. Ke3 {[%emt 0:1:59]} c5 {[%emt 0:1:26]} 17. Rhd1 {[%emt 0:5:15]} cxd4+ {[%emt 0:0:0]} 18. Rxd4 {[%emt 0:0:1]} e5 {[%emt 0:1:44]} 19. Rd2 {[%emt 0:2:21]} b5 {[%emt 0:2:55]} 20. Nd6 {[%emt 0:1:48]} Nc5 {[%emt 0:0:22]} 21. Nf5+ {[%emt 0:1:7]
} Ke8 {[%emt 0:0:29]} 22. Rxd8+ {[%emt 0:0:37]} Rxd8 {[%emt 0:0:0]} 23. b4 Nb3 {[%emt 0:1:35]} 24. Rxa7 {[%emt 0:0:20]} g6 {[%emt 0:0:0]} 25. Nh6 {[%emt 0:0:57]} Rd7 {[%emt 0:0:30]} 26. Ra8+ {[%emt 0:0:21]} Ke7 {[%emt 0:0:2]} 27. Be2 {[%emt 0:0:5]} Nd4 {[%emt 0:0:9]} 28. Bd3 {[%emt 0:0:2]
} Rc7 {[%emt 0:0:12]} 29. f4 {[%emt 0:0:4]} Nc6 {[%emt 0:0:0]} 30. Bxb5 {[%emt 0:0:15]} exf4+ {[%emt 0:0:7]} 31. gxf4 {[%emt 0:0:25]} Nxb4 {[%emt 0:0:1]} 32. e5 {[%emt 0:0:7]} Nd7 {[%emt 0:0:4]} 33. Kd4 {[%emt 0:0:21]
} Rb7 {[%emt 0:0:26]} 34. Ba4 {[%emt 0:0:12]} f6 {[%emt 0:0:0]} 35. Ng8+ {[%emt 0:0:7]} Kf7 {[%emt 0:0:0]} 36. Bb3+ {[%emt 0:0:7]} Kg7 {[%emt 0:0:1]} 37. e6 {[%emt 0:0:1]} Nb6 {[%emt 0:0:17]} 38. Re8 {[%emt 0:0:20]
} Nc6+ {[%emt 0:0:13]} 39. Kc5 {[%emt 0:0:1]} Na5 {[%emt 0:0:0]} 40. Bd5 {[%emt 0:0:20]} Na4+ {[%emt 0:0:9]} 41. Kd6 {[%emt 0:0:7]} Rb6+ {[%emt 0:0:6]} 42. Kc7 {[%emt 0:0:1]} Rxb2 {[%emt 0:0:5]} 43. e7 {[%emt 0:0:4]
} Rc2+ {[%emt 0:0:31]} 44. Kd6 {[%emt 0:0:2]} Nb6 {[%emt 0:0:0]} 45. Rb8 {[%emt 0:0:7]} Nc8+ {[%emt 0:0:19]} 46. Rxc8 {[%emt 0:0:35]} Rxc8 {[%emt 0:0:1]} 47. Kd7 {[%emt 0:0:0]} Rb8 {[%emt 0:0:20]} 48. e8=Q {[%emt 0:0:4]
} Rxe8 {[%emt 0:0:1]} 49. Kxe8 {[%emt 0:0:1]} f5 {[%emt 0:0:0]} 50. Ke7 {[%emt 0:0:34]} h6 {[%emt 0:0:1]} 51. Nf6 {[%emt 0:0:11]} g5 {[%emt 0:0:17]
} 52. Nh5+ {[%emt 0:0:1]} Kg6 {[%emt 0:0:14]} 53. Bf7+ {[%emt 0:0:1]
} Kh7 {[%emt 0:0:2]} 54. Kf6 {[%emt 0:0:14]} gxf4 {[%emt 0:0:0]} 55. Nxf4 {[%emt 0:0:16]} Nc6 {[%emt 0:0:2]} 56. Bg6+ {[%emt 0:0:3]} Kh8 {[%emt 0:0:24]} 57. Bxf5 {[%emt 0:0:3]} Nd4 {[%emt 0:0:2]} 58. Be4 {[%emt 0:0:2]
} Nb3 {[%emt 0:0:26]} 59. Kg6 {[%emt 0:0:3]} Nd2 {[%emt 0:0:0]} 60. Bg2 {[%emt 0:0:2]} Nc4 {[%emt 0:0:17]} 61. Kxh6 {[%emt 0:0:2]} Ne3 {[%emt 0:0:6]} 62. Bf3 {[%emt 0:0:5]} Kg8 {[%emt 0:0:7]} 63. Kg6 {[%emt 0:0:4]
} Kh8 {[%emt 0:0:10]} 64. h4 {[%emt 0:0:7]} Nc4 {[%emt 0:0:0]} 65. Be2 {[%emt 0:0:53]} Ne5+ {[%emt 0:0:8]} 66. Kf5 {[%emt 0:0:9]} Nf7 {[%emt 0:0:3]} 67. Kf6 {[%emt 0:0:6]} Nd6 {[%emt 0:0:0]} 68. Bd3 {[%emt 0:0:8]
} Ne8+ {[%emt 0:0:8]} 69. Ke7 {[%emt 0:0:17]} Nc7 {[%emt 0:0:0]} 70. Kd7 {[%emt 0:0:3]} Na8 {[%emt 0:0:15]} 71. Kc6 {[%emt 0:0:2]} 1-0

[Event "FIDE World Rapid-ch Open 2018"]
[White "Khusnutdinov, Rustam"]
[Black "Fridman, Daniel"]
[Site "St. Petersburg"]
[Round "3.31"]
[Annotator "ChessBase"]
[Result "1/2-1/2"]
[Date "2018.12.26"]
[WhiteElo "2470"]
[BlackElo "2633"]
[PlyCount "144"]
[TimeControl "900+10"]

1. e4 {[%emt 0:0:0]} c6 {[%emt 0:0:0]} 2. d3 {[%emt 0:0:11]} d5 {[%emt 0:0:0]} 3. Nd2 {[%emt 0:0:0]} g6 {[%emt 0:0:5]} 4. g3 {[%emt 0:0:1]} Bg7 {[%emt 0:0:2]} 5. Bg2 {[%emt 0:0:1]} b6 {[%emt 0:0:14]} 6. Ngf3 {[%emt 0:0:0]} Bb7 {[%emt 0:0:2]} 7. 0-0 {[%emt 0:0:4]} Nd7 {[%emt 0:0:2]} 8. Re1 {[%emt 0:2:20]} e6 {[%emt 0:0:2]} 9. Nf1 {[%emt 0:0:13]} Ne7 {[%emt 0:0:0]} 10. c3 {[%emt 0:0:11]} dxe4 {[%emt 0:0:10]} 11. dxe4 {[%emt 0:0:3]} Nc5 {[%emt 0:0:2]} 12. Bg5 {[%emt 0:0:25]} h6 {[%emt 0:0:9]} 13. Bxe7 {[%emt 0:1:41]
} Qxd1 {[%emt 0:3:18]} 14. Raxd1 {[%emt 0:0:2]} Kxe7 {[%emt 0:0:0]} 15. e5 {[%emt 0:0:34]} Na4 {[%emt 0:0:11]} 16. Rd2 {[%emt 0:4:57]} Rhd8 {[%emt 0:6:31]} 17. Nd4 {[%emt 0:0:19]} Rac8 {[%emt 0:0:3]} 18. f4 {[%emt 0:0:10]
} Ba8 {[%emt 0:0:35]} 19. Rc2 {[%emt 0:0:33]} a6 {[%emt 0:0:0]} 20. Ne3 {[%emt 0:0:47]} c5 {[%emt 0:0:39]} 21. Ne2 {[%emt 0:0:13]} Bxg2 {[%emt 0:0:5]} 22. Kxg2 {[%emt 0:0:3]} b5 {[%emt 0:0:11]} 23. b3 {[%emt 0:0:0]} Nb6 {[%emt 0:0:4]} 24. c4 {[%emt 0:0:0]} b4 {[%emt 0:0:2]} 25. Rd1 {[%emt 0:0:21]} f6 {[%emt 0:0:49]} 26. exf6+ {[%emt 0:0:8]} Bxf6 {[%emt 0:0:2]
} 27. Rcd2 {[%emt 0:0:1]} Rxd2 {[%emt 0:0:12]} 28. Rxd2 {[%emt 0:0:0]
} h5 {[%emt 0:0:21]} 29. Nd1 {[%emt 0:0:15]} a5 {[%emt 0:0:39]
} 30. Nf2 {[%emt 0:0:1]} Rd8 {[%emt 0:0:50]} 31. Rxd8 {[%emt 0:0:15]} Kxd8 {[%emt 0:0:1]} 32. Ne4 {[%emt 0:0:1]} Be7 {[%emt 0:0:1]} 33. Nc1 {[%emt 0:0:3]
} Nd7 {[%emt 0:0:27]} 34. Nd3 {[%emt 0:0:2]} Kc7 {[%emt 0:0:0]} 35. Kf3 {[%emt 0:0:1]} Kb6 {[%emt 0:0:21]} 36. h4 {[%emt 0:1:29]} Kc7 {[%emt 0:0:6]} 37. Ndf2 {[%emt 0:1:8]} Nb8 {[%emt 0:0:42]} 38. Nd3 {[%emt 0:0:8]
} Nd7 {[%emt 0:0:1]} 39. Ke3 {[%emt 0:0:42]} Bd6 {[%emt 0:0:0]} 40. Nd2 {[%emt 0:0:21]} Kd8 {[%emt 0:0:9]} 41. Ne4 {[%emt 0:1:21]} Kc7 {[%emt 0:0:1]} 42. Ng5 {[%emt 0:0:32]} Nf8 {[%emt 0:0:1]} 43. Ke4 {[%emt 0:0:20]
} Kb7 {[%emt 0:0:31]} 44. Nf7 {[%emt 0:0:4]} Kc7 {[%emt 0:0:0]} 45. Nde5 {[%emt 0:0:51]} Be7 {[%emt 0:0:3]} 46. Nh8 {[%emt 0:0:4]} Nh7 {[%emt 0:0:11]} 47. Nhxg6 {[%emt 0:0:3]} Nf6+ {[%emt 0:0:2]} 48. Kf3 {[%emt 0:0:2]
} Bd6 {[%emt 0:0:2]} 49. Nd3 {[%emt 0:0:7]} a4 {[%emt 0:0:0]} 50. Nge5 {[%emt 0:0:17]} a3 {[%emt 0:0:14]} 51. Nf7 {[%emt 0:0:11]} Kd7 {[%emt 0:0:42]} 52. Ng5 {[%emt 0:0:3]} Ng4 {[%emt 0:0:31]} 53. Ne4 {[%emt 0:0:4]
} Kc6 {[%emt 0:0:4]} 54. Ndf2 {[%emt 0:0:2]} Nh6 {[%emt 0:0:0]} 55. Nd3 {[%emt 0:0:52]} Nf5 {[%emt 0:0:10]} 56. Nd2 {[%emt 0:0:9]} Be7 {[%emt 0:0:14]} 57. Kf2 {[%emt 0:0:14]} Bf6 {[%emt 0:0:27]} 58. Nf3 {[%emt 0:0:38]
} Kd6 {[%emt 0:0:9]} 59. Nc1 {[%emt 0:0:10]} Bd4+ {[%emt 0:0:0]} 60. Nxd4 {[%emt 0:0:20]} Nxd4 {[%emt 0:0:1]} 61. g4 {[%emt 0:0:4]} hxg4 {[%emt 0:0:37]} 62. Kg3 {[%emt 0:0:1]} Ke7 {[%emt 0:0:1]} 63. Kxg4 {[%emt 0:0:4]
} Kf7 {[%emt 0:0:5]} 64. Kg5 {[%emt 0:0:12]} Nf3+ {[%emt 0:0:0]} 65. Kg4 {[%emt 0:0:0]} Nd4 {[%emt 0:0:1]} 66. Kg3 {[%emt 0:0:15]} Kg6 {[%emt 0:0:5]} 67. Kg4 {[%emt 0:0:7]} Kg7 {[%emt 0:0:9]} 68. h5 {[%emt 0:0:0]} Kh6 {[%emt 0:0:2]} 69. Kh4 {[%emt 0:0:1]} Nf5+ {[%emt 0:0:6]} 70. Kg4 {[%emt 0:0:2]} Nd4 {[%emt 0:0:2]} 71. Kh4 {[%emt 0:0:5]} Nf5+ {[%emt 0:0:4]
} 72. Kg4 {[%emt 0:0:1]} Nd4 {[%emt 0:0:1]} 1/2-1/2

[Event "FIDE World Rapid-ch Open 2018"]
[White "Riazantsev, Alexander"]
[Black "Usmanov, Vasily"]
[Site "St. Petersburg"]
[Round "3.32"]
[Annotator "ChessBase"]
[Result "1/2-1/2"]
[Date "2018.12.26"]
[WhiteElo "2649"]
[BlackElo "2450"]
[PlyCount "84"]
[TimeControl "900+10"]

1. d4 {[%emt 0:0:0]} d5 {[%emt 0:0:0]} 2. c4 {[%emt 0:0:0]} e6 {[%emt 0:0:0]} 3. Nf3 {[%emt 0:0:0]} Nf6 {[%emt 0:0:0]} 4. Bg5 {[%emt 0:0:0]} Be7 {[%emt 0:0:0]} 5. e3 {[%emt 0:0:0]} h6 {[%emt 0:0:2]} 6. Bxf6 {[%emt 0:0:0]
} Bxf6 {[%emt 0:0:1]} 7. Qc2 {[%emt 0:0:6]} Nd7 {[%emt 0:0:0]} 8. Nc3 {[%emt 0:1:10]} c6 {[%emt 0:0:4]} 9. h4 {[%emt 0:0:2]} b6 {[%emt 0:0:51]
} 10. 0-0-0 {[%emt 0:0:48]} Bb7 {[%emt 0:0:21]} 11. Kb1 {[%emt 0:0:4]
} Qc7 {[%emt 0:0:59]} 12. Be2 {[%emt 0:2:28]} 0-0-0 {[%emt 0:0:0]} 13. cxd5 {[%emt 0:0:8]} exd5 {[%emt 0:1:8]} 14. Rc1 {[%emt 0:0:1]
} Nf8 {[%emt 0:0:24]} 15. Nb5 {[%emt 0:2:31]} Qb8 {[%emt 0:0:13]} 16. Ne5 {[%emt 0:0:24]
} Bxe5 {[%emt 0:0:3]} 17. dxe5 {[%emt 0:0:1]} Ne6 {[%emt 0:0:0]} 18. Bg4 {[%emt 0:1:20]} Qxe5 {[%emt 0:3:7]} 19. Nxa7+ {[%emt 0:0:0]} Kb8 {[%emt 0:0:7]} 20. Nxc6+ {[%emt 0:0:3]} Bxc6 {[%emt 0:0:2]} 21. Qxc6 {[%emt 0:0:2]} Rd6 {[%emt 0:0:21]} 22. Qc2 {[%emt 0:0:55]} Qe4 {[%emt 0:1:25]
} 23. Bxe6 {[%emt 0:2:14]} Qxc2+ {[%emt 0:1:15]} 24. Rxc2 {[%emt 0:0:1]
} fxe6 {[%emt 0:0:1]} 25. Rhc1 {[%emt 0:0:1]} e5 {[%emt 0:0:0]} 26. Rc7 {[%emt 0:0:28]} Rf8 {[%emt 0:0:1]} 27. f3 {[%emt 0:1:31]} Rg6 {[%emt 0:0:3]} 28. R7c6 {[%emt 0:0:9]} Rff6 {[%emt 0:0:41]} 29. Rc8+ {[%emt 0:2:3]
} Kb7 {[%emt 0:0:0]} 30. R1c7+ {[%emt 0:0:10]} Ka6 {[%emt 0:0:0]} 31. Rc2 {[%emt 0:0:31]} e4 {[%emt 0:0:48]} 32. f4 {[%emt 0:1:53]} Rg3 {[%emt 0:0:2]} 33. R8c3 {[%emt 0:0:14]} g5 {[%emt 0:0:1]} 34. hxg5 {[%emt 0:0:26]
} hxg5 {[%emt 0:0:1]} 35. fxg5 {[%emt 0:0:24]} Rf1+ {[%emt 0:0:0]} 36. Rc1 {[%emt 0:0:0]} Rxc1+ {[%emt 0:0:2]} 37. Kxc1 {[%emt 0:0:0]} Rxg2 {[%emt 0:0:1]} 38. Ra3+ {[%emt 0:0:32]} Kb5 {[%emt 0:0:8]} 39. Rb3+ {[%emt 0:0:1]} Kc5 {[%emt 0:0:20]} 40. Rc3+ {[%emt 0:0:0]} Kb5 {[%emt 0:0:30]
} 41. Rb3+ {[%emt 0:0:1]} Kc6 {[%emt 0:0:1]} 42. Rc3+ {[%emt 0:0:5]
} Kb5 {[%emt 0:0:32]} 1/2-1/2

[Event "FIDE World Rapid-ch Open 2018"]
[White "Vokhidov, Shamsiddin"]
[Black "Dreev, Aleksey"]
[Site "St. Petersburg"]
[Round "3.33"]
[Annotator "ChessBase"]
[Result "1/2-1/2"]
[Date "2018.12.26"]
[WhiteElo "2480"]
[BlackElo "2670"]
[PlyCount "113"]
[TimeControl "900+10"]

1. e4 {[%emt 0:0:0]} c6 {[%emt 0:0:0]} 2. d4 {[%emt 0:0:1]} d5 {[%emt 0:0:0]} 3. Nc3 {[%emt 0:0:4]} dxe4 {[%emt 0:0:0]} 4. Nxe4 {[%emt 0:0:1]} Bf5 {[%emt 0:0:0]} 5. Ng3 {[%emt 0:0:1]} Bg6 {[%emt 0:0:0]} 6. h4 {[%emt 0:0:2]
} h6 {[%emt 0:0:0]} 7. Nf3 {[%emt 0:0:1]} e6 {[%emt 0:0:0]} 8. Ne5 {[%emt 0:0:8]} Bh7 {[%emt 0:0:2]} 9. Bd3 {[%emt 0:0:1]} Bxd3 {[%emt 0:0:8]
} 10. Qxd3 {[%emt 0:0:2]} Nd7 {[%emt 0:0:9]} 11. Bf4 {[%emt 0:0:2]
} Nxe5 {[%emt 0:0:33]} 12. Bxe5 {[%emt 0:0:1]} Qa5+ {[%emt 0:0:0]} 13. c3 {[%emt 0:0:3]} Nf6 {[%emt 0:0:1]} 14. Ne4 {[%emt 0:0:13]} Nxe4 {[%emt 0:1:34]} 15. Qxe4 {[%emt 0:0:1]} Qd5 {[%emt 0:0:1]} 16. Qxd5 {[%emt 0:0:4]
} exd5 {[%emt 0:0:49]} 17. h5 {[%emt 0:0:2]} Kd7 {[%emt 0:0:0]} 18. Kd2 {[%emt 0:0:8]} Bd6 {[%emt 0:2:9]} 19. Bxg7 {[%emt 0:1:9]} Bf4+ {[%emt 0:0:2]} 20. Ke2 {[%emt 0:0:29]} Rhg8 {[%emt 0:0:4]} 21. Bf6 {[%emt 0:0:2]
} Rae8+ {[%emt 0:1:3]} 22. Kf3 {[%emt 0:0:9]} Re6 {[%emt 0:0:0]} 23. Bh4 {[%emt 0:0:30]} Bg5 {[%emt 0:0:7]} 24. Bg3 {[%emt 0:3:27]} Rf6+ {[%emt 0:0:41]} 25. Ke2 {[%emt 0:0:4]} Re8+ {[%emt 0:2:24]} 26. Kd3 {[%emt 0:0:32]
} Rfe6 {[%emt 0:0:1]} 27. Bh4 {[%emt 0:1:23]} Bxh4 {[%emt 0:0:0]} 28. Rxh4 {[%emt 0:0:2]} Re2 {[%emt 0:0:1]} 29. Rf4 {[%emt 0:1:42]} Rxb2 {[%emt 0:0:3]} 30. Rxf7+ {[%emt 0:1:40]} Kd6 {[%emt 0:0:1]} 31. Rf6+ {[%emt 0:0:50]} Kd7 {[%emt 0:0:8]} 32. Rd1 {[%emt 0:0:45]} Ree2 {[%emt 0:0:0]} 33. Rxh6 {[%emt 0:0:13]} Rxf2 {[%emt 0:0:3]} 34. Rg6 {[%emt 0:0:2]
} Rxg2 {[%emt 0:0:4]} 35. Rxg2 {[%emt 0:0:13]} Rxg2 {[%emt 0:0:2]} 36. Rh1 {[%emt 0:0:10]} Rg7 {[%emt 0:3:43]} 37. h6 {[%emt 0:1:11]} Rh7 {[%emt 0:0:0]} 38. Ke3 {[%emt 0:0:36]} Ke6 {[%emt 0:0:1]} 39. Kf4 {[%emt 0:0:2]} Kf6 {[%emt 0:0:1]} 40. a3 {[%emt 0:0:13]} a5 {[%emt 0:0:15]} 41. Rh3 {[%emt 0:0:0]} a4 {[%emt 0:0:28]} 42. Rh2 {[%emt 0:0:40]} Rf7 {[%emt 0:0:15]} 43. h7 {[%emt 0:1:47]} Kg7+ {[%emt 0:0:22]} 44. Ke5 {[%emt 0:1:13]} Kh8 {[%emt 0:0:3]
} 45. Rh3 {[%emt 0:0:3]} Rf2 {[%emt 0:0:20]} 46. Kd6 {[%emt 0:0:0]} Rb2 {[%emt 0:0:8]} 47. Kc7 {[%emt 0:0:52]} Rb3 {[%emt 0:0:13]} 48. Rh1 {[%emt 0:0:22]} Rxa3 {[%emt 0:0:4]} 49. c4 {[%emt 0:0:7]} Rb3 {[%emt 0:2:5]
} 50. cxd5 {[%emt 0:0:15]} cxd5 {[%emt 0:0:1]} 51. Kd6 {[%emt 0:0:3]
} a3 {[%emt 0:0:25]} 52. Kxd5 {[%emt 0:0:3]} b5 {[%emt 0:0:0]} 53. Kc5 {[%emt 0:0:11]} b4 {[%emt 0:0:5]} 54. d5 {[%emt 0:0:2]} a2 {[%emt 0:0:9]
} 55. d6 {[%emt 0:0:12]} Rd3 {[%emt 0:0:34]} 56. Kxb4 {[%emt 0:0:0]} Rxd6 {[%emt 0:0:1]} 57. Ra1 {[%emt 0:0:2]} 1/2-1/2

[Event "FIDE World Rapid-ch Open 2018"]
[White "Pantsulaia, Levan"]
[Black "Bazeev, German"]
[Site "St. Petersburg"]
[Round "3.34"]
[Annotator "ChessBase"]
[Result "0-1"]
[Date "2018.12.26"]
[WhiteElo "2597"]
[BlackElo "2416"]
[PlyCount "130"]
[TimeControl "900+10"]

1. Nf3 {[%emt 0:0:0]} Nf6 {[%emt 0:0:0]} 2. g3 {[%emt 0:0:0]} d5 {[%emt 0:0:0]
} 3. Bg2 {[%emt 0:0:0]} c6 {[%emt 0:0:0]} 4. c4 {[%emt 0:0:0]} g6 {[%emt 0:0:37]} 5. b3 {[%emt 0:0:3]} Bg7 {[%emt 0:0:4]} 6. Bb2 {[%emt 0:0:1]
} 0-0 {[%emt 0:0:4]} 7. d3 {[%emt 0:0:3]} Bg4 {[%emt 0:0:4]
} 8. Nbd2 {[%emt 0:0:2]} Bxf3 {[%emt 0:0:9]} 9. Nxf3 a5 10. 0-0 {[%emt 0:0:0]} Nbd7 {[%emt 0:0:10]} 11. Qc2 {[%emt 0:0:10]} Re8 {[%emt 0:0:7]} 12. Rac1 {[%emt 0:0:17]} e5 {[%emt 0:0:6]} 13. cxd5 {[%emt 0:0:8]} Nxd5 {[%emt 0:0:3]
} 14. a3 {[%emt 0:0:14]} Qe7 {[%emt 0:0:17]} 15. Nd2 {[%emt 0:0:0]} Nc7 {[%emt 0:0:1]} 16. Nc4 {[%emt 0:0:45]} Ne6 {[%emt 0:1:11]} 17. e3 {[%emt 0:1:48]} b5 {[%emt 0:0:38]} 18. Nd2 {[%emt 0:0:20]} Rac8 {[%emt 0:0:0]} 19. Qb1 {[%emt 0:0:25]} Qd6 {[%emt 0:1:11]} 20. Ne4 {[%emt 0:0:24]} Qb8 {[%emt 0:0:1]} 21. Rfd1 {[%emt 0:0:6]} Red8 {[%emt 0:1:18]} 22. Bc3 {[%emt 0:1:8]
} b4 {[%emt 0:1:55]} 23. axb4 {[%emt 0:0:2]} axb4 {[%emt 0:0:0]} 24. Bb2 {[%emt 0:0:11]} Nb6 {[%emt 0:0:2]} 25. Qc2 {[%emt 0:0:42]} c5 {[%emt 0:1:49]} 26. Ra1 {[%emt 0:0:12]} Nd5 {[%emt 0:0:37]} 27. Ra6 {[%emt 0:1:0]
} Ndc7 {[%emt 0:0:25]} 28. Rc6 {[%emt 0:1:26]} Nb5 {[%emt 0:0:0]} 29. Rxc8 {[%emt 0:0:14]} Qxc8 {[%emt 0:0:37]} 30. Rc1 {[%emt 0:1:13]} Na3 {[%emt 0:0:10]} 31. Qe2 {[%emt 0:0:6]} f5 {[%emt 0:0:42]} 32. Nd2 {[%emt 0:4:23]
} e4 {[%emt 0:0:1]} 33. Nxe4 {[%emt 0:1:21]} fxe4 {[%emt 0:0:0]} 34. Bxe4 {[%emt 0:0:2]} Qd7 {[%emt 0:0:10]} 35. Bxg7 {[%emt 0:0:8]} Qxg7 {[%emt 0:0:10]} 36. Qg4 {[%emt 0:0:40]} Qf6 {[%emt 0:0:7]} 37. h4 {[%emt 0:1:14]
} h5 {[%emt 0:0:10]} 38. Qxg6+ {[%emt 0:0:6]} Qxg6 {[%emt 0:0:0]} 39. Bxg6 {[%emt 0:0:2]} Kg7 {[%emt 0:0:7]} 40. Bxh5 {[%emt 0:1:13]
} Rxd3 {[%emt 0:0:32]} 41. Bd1 {[%emt 0:0:1]} c4 {[%emt 0:2:0]} 42. bxc4 {[%emt 0:0:1]
} Nc5 {[%emt 0:0:0]} 43. Kg2 {[%emt 0:1:2]} Rd2 {[%emt 0:0:0]} 44. Ra1 {[%emt 0:0:5]} Ne4 {[%emt 0:0:26]} 45. c5 {[%emt 0:0:29]} Nxf2 {[%emt 0:0:47]} 46. Bf3 {[%emt 0:0:1]} Ne4+ {[%emt 0:0:7]} 47. Kh3 {[%emt 0:0:1]
} Nxc5 {[%emt 0:0:1]} 48. g4 {[%emt 0:0:15]} Rd7 {[%emt 0:0:0]} 49. Rc1 {[%emt 0:0:22]} Rc7 {[%emt 0:1:2]} 50. Bd5 {[%emt 0:0:1]} Nb5 {[%emt 0:0:10]} 51. Rc4 {[%emt 0:0:20]} Nc3 {[%emt 0:0:8]} 52. Bf3 {[%emt 0:0:12]
} Na6 {[%emt 0:0:12]} 53. Bc6 {[%emt 0:0:3]} Nb8 {[%emt 0:0:0]} 54. Rxb4 {[%emt 0:0:1]} Nxc6 {[%emt 0:0:3]} 55. Rc4 {[%emt 0:0:6]} Nd5 {[%emt 0:0:1]} 56. e4 {[%emt 0:0:1]} Nde7 {[%emt 0:0:3]} 57. g5 Rd7 58. h5 {[%emt 0:0:7]} Ne5 {[%emt 0:0:4]} 59. Rc3 {[%emt 0:0:6]} N7c6 {[%emt 0:0:8]
} 60. Rb3 {[%emt 0:0:7]} Nd4 {[%emt 0:0:21]} 61. Ra3 {[%emt 0:0:0]} Ne6 {[%emt 0:0:2]} 62. Kh4 {[%emt 0:0:2]} Rf7 {[%emt 0:0:41]} 63. g6 {[%emt 0:0:24]} Rf4+ {[%emt 0:0:5]} 64. Kg3 {[%emt 0:0:5]} Rg4+ {[%emt 0:0:1]
} 65. Kh3 {[%emt 0:0:1]} Ng5+ {[%emt 0:0:1]} 0-1